fUSD/lending_fUSD_20240104
["ID","MTS","AMOUNT","RATE_DAILY","PERIOD"]
[310165722,1704385857422,-966.43,0.00033424,2]
[310165723,1704385857432,-500.0,0.00033424,2]
[310165724,1704385857441,-1205.99,0.00033424,2]
[310165725,1704385857452,-500.0,0.00033424,2]
[310165726,1704385857462,-1633.17,0.00033424,2]
[310165727,1704385857472,-634.98,0.00033424,2]
[310165728,1704385857483,-500.0,0.00033424,2]
[310165729,1704385857493,-500.0,0.00033424,2]
[310165730,1704385857503,-500.0,0.00033424,2]
[310165731,1704385857513,-500.0,0.00033424,2]
[310165732,1704385857524,-572.1,0.00033424,2]
[310165733,1704385857534,-502.37,0.00033424,2]
[310165734,1704385857546,-3508.88,0.00033424,2]
[310165735,1704385857556,-575.96,0.00033424,2]
[310165736,1704385857566,-1695.97,0.00033424,2]
[310165737,1704385857576,-1870.68,0.00033424,2]
[310165738,1704385857586,-500.0,0.00033424,2]
[310165739,1704385857596,-3024.2,0.00033424,2]
[310165740,1704385857606,-500.0,0.00033424,2]
[310165741,1704385857616,-500.0,0.00033424,2]
[310165742,1704385857626,-2997.38,0.00033424,2]
[310165743,1704385857641,-745.52,0.00033424,2]
[310165744,1704385857651,-500.0,0.00033424,2]
[310165745,1704385857661,-1363.78,0.00033424,2]
[310165746,1704385857671,-634.82,0.00033424,2]
[310165747,1704385857681,-177.17954585,0.00033424,2]
[310165748,1704385857691,-600.63,0.00033424,2]
[310165749,1704385857700,-500.0,0.00033424,2]
[310165750,1704385857710,-500.0,0.00033424,2]
[310165751,1704385857720,-500.0,0.00033424,2]
[310165752,1704385857730,-1286.88,0.00033424,2]
[310165753,1704385857739,-508.66,0.00033424,2]
[310165754,1704385857749,-500.0,0.00033424,2]
[310165755,1704385857759,-500.0,0.00033424,2]
[310165756,1704385857770,-500.0,0.00033424,2]
[310165757,1704385857780,-966.41,0.00033424,2]
[310165758,1704385857789,-401.4922361,0.00033438,6]
[310165759,1704385857802,-3886.393583,0.00033518,14]
[310165760,1704385857815,-979.588,0.00033518,2]
[310165761,1704385857827,-421.987,0.00033518,2]
[310165762,1704385857837,-16285.899,0.00033518,2]
[310165763,1704385857846,-2034.03,0.00033518,2]
[310165764,1704385857859,-21482.317,0.00033518,2]
[310165765,1704385857870,-193.785,0.00033518,2]
[310165766,1704385857880,-294.44,0.000336,2]
[310165767,1704385857890,-294.44,0.000336,2]
[310165768,1704385857901,-294.44,0.000336,2]
[310165769,1704385857911,-294.44,0.000336,2]
[310165770,1704385857921,-294.44,0.000336,2]
[310165771,1704385857931,-294.44,0.000336,2]
[310165772,1704385857942,-294.44,0.000336,2]
[310165773,1704385857952,-294.44,0.000336,2]
[310165774,1704385857962,-294.44,0.000336,2]
[310165775,1704385857972,-294.44,0.000336,2]
[310165776,1704385857982,-294.44,0.000336,2]
[310165777,1704385857992,-294.44,0.000336,2]
[310165778,1704385858002,-294.44,0.000336,2]
[310165779,1704385858012,-294.44,0.000336,2]
[310165780,1704385858022,-294.44,0.000336,2]
[310165781,1704385858032,-294.44,0.000336,2]
[310165782,1704385858042,-294.44,0.000336,2]
[310165783,1704385858053,-294.44,0.000336,2]
[310165784,1704385858063,-294.44,0.000336,2]
[310165785,1704385858072,-294.44,0.000336,2]
[310165786,1704385858082,-153.25,0.00033667,2]
[310165787,1704385858092,-500.0,0.00033698,2]
[310165788,1704385858101,-500.0,0.00033698,2]
[310165789,1704385858112,-500.0,0.00033698,2]
[310165790,1704385858122,-530.45860926,0.00033698,2]
[310165791,1704385858131,-500.0,0.00033698,2]
[310165792,1704385858141,-500.0,0.00033698,2]
[310165793,1704385858151,-500.0,0.00033698,2]
[310165794,1704385858161,-500.0,0.00033698,2]
[310165795,1704385858171,-500.0,0.00033698,2]
[310165796,1704385858180,-478.14820297,0.00033698,2]
[310165797,1704385858190,-500.0,0.00033698,2]
[310165798,1704385858199,-500.0,0.00033698,2]
[310165799,1704385858209,-500.0,0.00033698,2]
[310165800,1704385858218,-500.0,0.00033698,2]
[310165801,1704385858227,-500.0,0.00033698,2]
[310165802,1704385858237,-500.0,0.00033698,2]
[310165803,1704385858247,-500.0,0.00033698,2]
[310165804,1704385858257,-500.0,0.00033698,2]
[310165805,1704385858267,-500.0,0.00033698,2]
[310165806,1704385858278,-500.0,0.00033698,2]
[310165807,1704385858288,-500.0,0.00033698,2]
[310165808,1704385858299,-500.0,0.00033698,2]
[310165809,1704385858309,-500.0,0.00033698,2]
[310165810,1704385858318,-500.0,0.00033698,2]
[310165811,1704385858328,-500.0,0.00033698,2]
[310165812,1704385858338,-642.43,0.00033698,2]
[310165813,1704385858348,-500.0,0.00033698,2]
[310165814,1704385858359,-500.0,0.00033698,2]
[310165815,1704385858369,-500.0,0.00033698,2]
[310165816,1704385858378,-500.0,0.00033698,2]
[310165817,1704385858388,-500.0,0.00033698,2]
[310165818,1704385858398,-500.0,0.00033698,2]
[310165819,1704385858408,-500.0,0.00033698,2]
[310165820,1704385858417,-500.0,0.00033698,2]
[310165821,1704385858427,-365.14363772,0.00033698,2]
[310165822,1704385858437,-500.0,0.00033698,2]
[310165823,1704385858447,-500.0,0.00033698,2]
[310165824,1704385858457,-500.0,0.00033698,2]
[310165825,1704385858466,-1379.91,0.00033698,2]
[310165826,1704385858476,-515.69,0.00033698,2]
[310165827,1704385858485,-500.0,0.00033698,2]
[310165828,1704385858495,-500.0,0.00033698,2]
[310165829,1704385858505,-500.0,0.00033698,2]
[310165830,1704385858514,-500.0,0.00033698,2]
[310165831,1704385858524,-500.0,0.00033698,2]
[310165832,1704385858533,-395.97822386,0.00033698,2]
[310165833,1704385858543,-500.0,0.00033698,2]
[310165834,1704385858554,-346.70580045,0.00033698,2]
[310165835,1704385858564,-500.0,0.00033698,2]
[310165836,1704385858574,-500.0,0.00033698,2]
[310165837,1704385858583,-500.0,0.00033698,2]
[310165838,1704385858593,-500.0,0.00033698,2]
[310165839,1704385858602,-500.0,0.00033698,2]
[310165840,1704385858612,-500.0,0.00033698,2]
[310165841,1704385858622,-500.0,0.00033698,2]
[310165842,1704385858632,-500.0,0.00033698,2]
[310165843,1704385858642,-334.32072137,0.00033698,2]
[310165844,1704385858652,-866.5,0.00033698,2]
[310165845,1704385858662,-500.0,0.00033698,2]
[310165846,1704385858672,-500.0,0.00033698,2]
[310165847,1704385858681,-500.0,0.00033698,2]
[310165848,1704385858691,-500.0,0.00033698,2]
[310165849,1704385858701,-500.0,0.00033698,2]
[310165850,1704385858711,-500.0,0.00033698,2]
[310165851,1704385858720,-1079.45,0.00033698,2]
[310165852,1704385858730,-500.0,0.00033698,2]
[310165853,1704385858739,-500.0,0.00033698,2]
[310165854,1704385858750,-500.0,0.00033698,2]
[310165855,1704385858759,-500.0,0.00033698,2]
[310165856,1704385858768,-500.0,0.00033698,2]
[310165857,1704385858778,-500.0,0.00033698,2]
[310165858,1704385858789,-500.0,0.00033698,2]
[310165859,1704385858801,-500.0,0.00033698,2]
[310165860,1704385858811,-500.0,0.00033698,2]
[310165861,1704385858821,-873.79,0.00033698,2]
[310165862,1704385858830,-500.0,0.00033698,2]
[310165863,1704385858840,-607.66894019,0.00033698,2]
[310165864,1704385858849,-556.0,0.00033698,2]
[310165865,1704385858860,-500.0,0.00033698,2]
[310165866,1704385858870,-500.0,0.00033698,2]
[310165867,1704385858880,-500.0,0.00033698,2]
[310165868,1704385858891,-500.0,0.00033698,2]
[310165869,1704385858901,-500.0,0.00033698,2]
[310165870,1704385858910,-500.0,0.00033698,2]
[310165871,1704385858919,-883.7,0.00033698,2]
[310165872,1704385858930,-500.0,0.00033698,2]
[310165873,1704385858939,-500.0,0.00033698,2]
[310165874,1704385858949,-500.0,0.00033698,2]
[310165875,1704385858959,-500.0,0.00033698,2]
[310165876,1704385858969,-500.0,0.00033698,2]
[310165877,1704385858979,-500.0,0.00033698,2]
[310165878,1704385858989,-500.0,0.00033698,2]
[310165879,1704385858999,-500.0,0.00033698,2]
[310165880,1704385859009,-500.0,0.00033698,2]
[310165881,1704385859018,-500.0,0.00033698,2]
[310165882,1704385859028,-500.0,0.00033698,2]
[310165883,1704385859038,-500.0,0.00033698,2]
[310165884,1704385859050,-500.0,0.00033698,2]
[310165885,1704385859059,-500.0,0.00033698,2]
[310165886,1704385859068,-500.0,0.00033698,2]
[310165887,1704385859078,-500.0,0.00033698,2]
[310165888,1704385859088,-500.0,0.00033698,2]
[310165889,1704385859097,-564.84,0.00033698,2]
[310165890,1704385859107,-500.0,0.00033698,2]
[310165891,1704385859116,-500.0,0.00033698,2]
[310165892,1704385859126,-500.0,0.00033698,2]
[310165893,1704385859136,-500.0,0.00033698,2]
[310165894,1704385859145,-500.0,0.00033698,2]
[310165895,1704385859155,-500.0,0.00033698,2]
[310165896,1704385859164,-500.0,0.00033698,2]
[310165897,1704385859173,-500.0,0.00033698,2]
[310165898,1704385859183,-500.0,0.00033698,2]
[310165899,1704385859192,-500.0,0.00033698,2]
[310165900,1704385859202,-712.82,0.00033698,2]
[310165901,1704385859212,-158.69889436,0.00033698,2]
[310165902,1704385859221,-500.0,0.00033698,2]
[310165903,1704385859231,-500.0,0.00033698,2]
[310165904,1704385859241,-500.0,0.00033698,2]
[310165905,1704385859250,-500.0,0.00033698,2]
[310165906,1704385859261,-500.0,0.00033698,2]
[310165907,1704385859270,-500.0,0.00033698,2]
[310165908,1704385859280,-500.0,0.00033698,2]
[310165909,1704385859290,-500.0,0.00033698,2]
[310165910,1704385859305,-500.0,0.00033698,2]
[310165911,1704385859315,-500.0,0.00033698,2]
[310165912,1704385859325,-500.0,0.00033698,2]
[310165913,1704385859336,-500.0,0.00033698,2]
[310165914,1704385859346,-782.02,0.00033698,2]
[310165915,1704385859420,-500.0,0.00033698,2]
[310165916,1704385859430,-650.6,0.00033698,2]
[310165917,1704385859439,-500.0,0.00033698,2]
[310165918,1704385859449,-500.0,0.00033698,2]
[310165919,1704385859459,-500.0,0.00033698,2]
[310165920,1704385859468,-500.0,0.00033698,2]
[310165921,1704385859477,-589.68,0.00033698,2]
[310165922,1704385859487,-500.0,0.00033698,2]
[310165923,1704385859496,-500.0,0.00033698,2]
[310165924,1704385859506,-500.0,0.00033698,2]
[310165925,1704385859515,-500.0,0.00033698,2]
[310165926,1704385859525,-500.0,0.00033698,2]
[310165927,1704385859534,-500.0,0.00033698,2]
[310165928,1704385859544,-500.0,0.00033698,2]
[310165929,1704385859555,-500.0,0.00033698,2]
[310165930,1704385859565,-500.0,0.00033698,2]
[310165931,1704385859586,-500.0,0.00033698,2]
[310165932,1704385859595,-500.0,0.00033698,2]
[310165933,1704385859605,-500.0,0.00033698,2]
[310165934,1704385859614,-375.74611497,0.00033698,2]
[310165935,1704385859625,-500.0,0.00033698,2]
[310165936,1704385859634,-500.0,0.00033698,2]
[310165937,1704385859645,-512.91,0.00033698,2]
[310165938,1704385859654,-500.0,0.00033698,2]
[310165939,1704385859664,-500.0,0.00033698,2]
[310165940,1704385859673,-500.0,0.00033698,2]
[310165941,1704385859683,-500.0,0.00033698,2]
[310165942,1704385859692,-500.0,0.00033698,2]
[310165943,1704385859703,-500.0,0.00033698,2]
[310165944,1704385859712,-536.0,0.00033698,2]
[310165945,1704385859722,-500.0,0.00033698,2]
[310165946,1704385859731,-500.0,0.00033698,2]
[310165947,1704385859742,-500.0,0.00033698,2]
[310165948,1704385859751,-500.0,0.00033698,2]
[310165949,1704385859761,-500.0,0.00033698,2]
[310165950,1704385859771,-500.0,0.00033698,2]
[310165951,1704385859781,-500.0,0.00033698,2]
[310165952,1704385859790,-653.11,0.00033698,2]
[310165953,1704385859800,-500.0,0.00033698,2]
[310165954,1704385859809,-500.0,0.00033698,2]
[310165955,1704385859819,-500.0,0.00033698,2]
[310165956,1704385859828,-500.0,0.00033698,2]
[310165957,1704385859837,-500.0,0.00033698,2]
[310165958,1704385859846,-500.0,0.00033698,2]
[310165959,1704385859859,-247.62,0.00033698,2]
[310165960,1704385859870,-500.0,0.00033698,2]
[310165961,1704385859880,-500.0,0.00033698,2]
[310165962,1704385859889,-500.0,0.00033698,2]
[310165963,1704385859899,-500.0,0.00033698,2]
[310165964,1704385859908,-500.0,0.00033698,2]
[310165965,1704385859918,-500.0,0.00033698,2]
[310165966,1704385859927,-500.0,0.00033698,2]
[310165967,1704385859937,-500.0,0.00033698,2]
[310165968,1704385859947,-500.0,0.00033698,2]
[310165969,1704385859957,-572.43413293,0.00033698,2]
[310165970,1704385859967,-500.0,0.00033698,2]
[310165971,1704385859976,-500.0,0.00033698,2]
[310165972,1704385859985,-500.0,0.00033698,2]
[310165973,1704385859994,-500.0,0.00033698,2]
[310165974,1704385860004,-839.08,0.00033698,2]
[310165975,1704385860013,-500.0,0.00033698,2]
[310165976,1704385860022,-500.0,0.00033698,2]
[310165977,1704385860032,-500.0,0.00033698,2]
[310165978,1704385860042,-500.0,0.00033698,2]
[310165979,1704385860054,-500.0,0.00033698,2]
[310165980,1704385860064,-578.74,0.00033698,2]
[310165981,1704385860073,-500.0,0.00033698,2]
[310165982,1704385860083,-500.0,0.00033698,2]
[310165983,1704385860092,-720.36,0.00033698,2]
[310165984,1704385860102,-500.0,0.00033698,2]
[310165985,1704385860111,-500.0,0.00033698,2]
[310165986,1704385860120,-500.0,0.00033698,2]
[310165987,1704385860130,-500.0,0.00033698,2]
[310165988,1704385860139,-500.0,0.00033698,2]
[310165989,1704385860150,-397.513992,0.00033698,2]
[310165990,1704385860561,-102.486008,0.00033698,2]
[310165991,1704385860571,-500.0,0.00033698,2]
[310165992,1704385860580,-500.0,0.00033698,2]
[310165993,1704385860590,-298.023992,0.00033698,2]
[310165994,1704385860706,-414.356008,0.00033698,2]
[310165995,1704385860716,-500.0,0.00033698,2]
[310165996,1704385860725,-633.24,0.00033698,2]
[310165997,1704385860735,-500.0,0.00033698,2]
[310165998,1704385860745,-500.0,0.00033698,2]
[310165999,1704385860754,-500.0,0.00033698,2]
[310166000,1704385860763,-648.37,0.00033698,2]
[310166001,1704385860775,-500.0,0.00033698,2]
[310166002,1704385860785,-500.0,0.00033698,2]
[310166003,1704385860794,-500.0,0.00033698,2]
[310166004,1704385860807,-500.0,0.00033698,2]
[310166005,1704385860817,-500.0,0.00033698,2]
[310166006,1704385860826,-500.0,0.00033698,2]
[310166007,1704385860836,-500.0,0.00033698,2]
[310166008,1704385860845,-500.0,0.00033698,2]
[310166009,1704385860859,-500.0,0.00033698,2]
[310166010,1704385860869,-515.96,0.00033698,2]
[310166011,1704385860879,-500.0,0.00033698,2]
[310166012,1704385860892,-510.4,0.00033698,2]
[310166013,1704385860903,-500.0,0.00033698,2]
[310166014,1704385860913,-500.0,0.00033698,2]
[310166015,1704385860924,-500.0,0.00033698,2]
[310166016,1704385860934,-648.28,0.00033698,2]
[310166017,1704385860945,-500.0,0.00033698,2]
[310166018,1704385860956,-500.0,0.00033698,2]
[310166019,1704385860967,-344.73245718,0.00033698,2]
[310166020,1704385860977,-500.0,0.00033698,2]
[310166021,1704385860987,-500.0,0.00033698,2]
[310166022,1704385860997,-500.0,0.00033698,2]
[310166023,1704385861007,-500.0,0.00033698,2]
[310166024,1704385861018,-500.0,0.00033698,2]
[310166025,1704385861028,-500.0,0.00033698,2]
[310166026,1704385861038,-500.0,0.00033698,2]
[310166027,1704385861047,-529.47739969,0.00033698,2]
[310166028,1704385861265,-503.98,0.00033698,2]
[310166029,1704385861275,-500.0,0.00033698,2]
[310166030,1704385861286,-598.88174227,0.00033698,2]
[310166031,1704385861295,-500.0,0.00033698,2]
[310166032,1704385861305,-500.0,0.00033698,2]
[310166033,1704385861315,-500.0,0.00033698,2]
[310166034,1704385861324,-500.0,0.00033698,2]
[310166035,1704385861337,-500.0,0.00033698,2]
[310166036,1704385861346,-500.0,0.00033698,2]
[310166037,1704385861357,-500.0,0.00033698,2]
[310166038,1704385861367,-500.0,0.00033698,2]
[310166039,1704385861378,-500.0,0.00033698,2]
[310166040,1704385861388,-500.0,0.00033698,2]
[310166041,1704385861398,-500.0,0.00033698,2]
[310166042,1704385861407,-722.23,0.00033698,2]
[310166043,1704385861417,-500.0,0.00033698,2]
[310166044,1704385861426,-500.0,0.00033698,2]
[310166045,1704385861436,-1319.09,0.00033698,2]
[310166046,1704385861447,-500.0,0.00033698,2]
[310166047,1704385861456,-500.0,0.00033698,2]
[310166048,1704385861465,-1328.31,0.00033698,2]
[310166049,1704385861475,-521.89,0.00033698,2]
[310166050,1704385861485,-500.0,0.00033698,2]
[310166051,1704385861496,-500.0,0.00033698,2]
[310166052,1704385861505,-500.0,0.00033698,2]
[310166053,1704385861515,-2079.07,0.00033698,2]
[310166054,1704385861525,-500.0,0.00033698,2]
[310166055,1704385861535,-500.0,0.00033698,2]
[310166056,1704385861544,-500.0,0.00033698,2]
[310166057,1704385861555,-500.0,0.00033698,2]
[310166058,1704385861565,-500.0,0.00033698,2]
[310166059,1704385861575,-500.0,0.00033698,2]
[310166060,1704385861584,-7585.77,0.00033698,2]
[310166061,1704385861593,-2925.18,0.00033698,2]
[310166062,1704385861603,-2481.96,0.00033698,2]
[310166063,1704385861613,-221.22185075,0.00033698,2]
[310166064,1704385861623,-3698.67,0.00033698,2]
[310166065,1704385861633,-7276.42,0.00033698,2]
[310166066,1704385861642,-500.0,0.00033698,2]
[310166067,1704385861652,-741.52,0.00033698,2]
[310166068,1704385861661,-3360.35,0.00033698,2]
[310166069,1704385861670,-500.0,0.00033698,2]
[310166070,1704385861682,-500.0,0.00033698,2]
[310166071,1704385861692,-603.43,0.00033698,2]
[310166072,1704385861701,-500.0,0.00033698,2]
[310166073,1704385861710,-284.23150263,0.00033698,2]
[310166074,1704385861721,-500.0,0.00033698,2]
[310166075,1704385861730,-1104.53,0.00033698,2]
[310166076,1704385861739,-1867.17,0.00033698,2]
[310166077,1704385861749,-500.0,0.00033698,2]
[310166078,1704385861758,-745.37,0.00033698,2]
[310166079,1704385861767,-717.71,0.00033698,2]
[310166080,1704385861777,-500.0,0.00033698,2]
[310166081,1704385861787,-500.0,0.00033698,2]
[310166082,1704385861797,-781.55,0.00033698,2]
[310166083,1704385861810,-631.5,0.00033698,2]
[310166084,1704385861820,-500.0,0.00033698,2]
[310166085,1704385861829,-500.0,0.00033698,2]
[310166086,1704385861838,-500.0,0.00033698,2]
[310166087,1704385861848,-1635.46,0.00033698,2]
[310166088,1704385861858,-1434.6,0.00033698,2]
[310166089,1704385861868,-500.0,0.00033698,2]
[310166090,1704385861878,-500.0,0.00033698,2]
[310166091,1704385861888,-500.0,0.00033698,2]
[310166092,1704385861897,-1364.8,0.00033698,2]
[310166093,1704385861907,-500.0,0.00033698,2]
[310166094,1704385861917,-500.0,0.00033698,2]
[310166095,1704385861927,-2248.90930647,0.00033698,2]
[310166096,1704385861942,-763.98069353,0.00033698,2]
[310166097,1704385861952,-1626.94,0.00033698,2]
[310166098,1704385861962,-148.37375988,0.00033698,2]
[310166099,1704385861974,-251.70096473,0.00033698,2]
[310166100,1704385861987,-99.92527539,0.00033698,2]
[310166101,1704385861997,-2478.49641331,0.00033698,2]
[310166102,1704385862009,-2011.63566738,0.00033698,2]
[310166103,1704385862020,-353.627995,0.00033698,2]
[310166104,1704385862033,-252.000007,0.00033698,2]
[310166105,1704385862044,-1722.91017983,0.00033698,2]
[310166106,1704385862070,-6518.61973748,0.00033698,2]
[310166107,1704385862080,-500.0,0.00033698,2]
[310166108,1704385862090,-500.0,0.00033698,2]
[310166109,1704385862099,-500.0,0.00033698,2]
[310166110,1704385862109,-1493.62,0.00033698,2]
[310166111,1704385862118,-4239.56,0.00033698,2]
[310166112,1704385862128,-500.0,0.00033698,2]
[310166113,1704385862138,-1287.1,0.00033698,2]
[310166114,1704385862149,-500.0,0.00033698,2]
[310166115,1704385862158,-500.0,0.00033698,2]
[310166116,1704385862169,-3494.09,0.00033698,2]
[310166117,1704385862179,-500.0,0.00033698,2]
[310166118,1704385862189,-500.0,0.00033698,2]
[310166119,1704385862199,-645.06,0.00033698,2]
[310166120,1704385862208,-500.0,0.00033698,2]
[310166121,1704385862218,-668.19,0.00033698,2]
[310166122,1704385862228,-500.0,0.00033698,2]
[310166123,1704385862237,-1012.42,0.00033698,2]
[310166124,1704385862246,-500.0,0.00033698,2]
[310166125,1704385862257,-489.79847762,0.00033698,2]
[310166126,1704385862266,-500.0,0.00033698,2]
[310166127,1704385862276,-500.0,0.00033698,2]
[310166128,1704385862287,-500.0,0.00033698,2]
[310166129,1704385862297,-640.97,0.00033698,2]
[310166130,1704385862308,-2694.65,0.00033698,2]
[310166131,1704385862319,-500.0,0.00033698,2]
[310166132,1704385862330,-500.0,0.00033698,2]
[310166133,1704385862339,-1265.1,0.00033698,2]
[310166134,1704385862348,-500.0,0.00033698,2]
[310166135,1704385862358,-500.0,0.00033698,2]
[310166136,1704385862379,-500.0,0.00033698,2]
[310166137,1704385862390,-500.0,0.00033698,2]
[310166138,1704385862400,-4052.06,0.00033698,2]
[310166139,1704385862410,-1558.59,0.00033698,2]
[310166140,1704385862420,-500.0,0.00033698,2]
[310166141,1704385862430,-500.0,0.00033698,2]
[310166142,1704385862440,-500.0,0.00033698,2]
[310166143,1704385862451,-500.0,0.00033698,2]
[310166144,1704385862462,-500.0,0.00033698,2]
[310166145,1704385862473,-500.0,0.00033698,2]
[310166146,1704385862483,-500.0,0.00033698,2]
[310166147,1704385862493,-500.0,0.00033698,2]
[310166148,1704385862503,-500.0,0.00033698,2]
[310166149,1704385862512,-500.0,0.00033698,2]
[310166150,1704385862522,-500.0,0.00033698,2]
[310166151,1704385862531,-500.0,0.00033698,2]
[310166152,1704385862541,-500.0,0.00033698,2]
[310166153,1704385862551,-379.10883715,0.00033698,2]
[310166154,1704385862561,-500.0,0.00033698,2]
[310166155,1704385862571,-500.0,0.00033698,2]
[310166156,1704385862580,-2487.25,0.00033698,2]
[310166157,1704385862590,-2831.73,0.00033698,2]
[310166158,1704385862600,-185.91736919,0.00033698,2]
[310166159,1704385862610,-500.0,0.00033698,2]
[310166160,1704385862619,-608.22,0.00033698,2]
[310166161,1704385862629,-691.31,0.00033698,2]
[310166162,1704385862639,-500.0,0.00033698,2]
[310166163,1704385862649,-992.14,0.00033698,2]
[310166164,1704385862658,-500.0,0.00033698,2]
[310166165,1704385862668,-500.0,0.00033698,2]
[310166166,1704385862678,-500.0,0.00033698,2]
[310166167,1704385862687,-4232.56,0.00033698,2]
[310166168,1704385862697,-500.0,0.00033698,2]
[310166169,1704385862707,-500.0,0.00033698,2]
[310166170,1704385862717,-500.0,0.00033698,2]
[310166171,1704385862727,-500.0,0.00033698,2]
[310166172,1704385862737,-500.0,0.00033698,2]
[310166173,1704385862748,-1331.56,0.00033698,2]
[310166174,1704385862758,-756.8,0.00033698,2]
[310166175,1704385862769,-4456.48,0.00033698,2]
[310166176,1704385862779,-500.0,0.00033698,2]
[310166177,1704385862789,-529.76,0.00033698,2]
[310166178,1704385862800,-500.0,0.00033698,2]
[310166179,1704385862811,-1162.39,0.00033698,2]
[310166180,1704385862821,-500.0,0.00033698,2]
[310166181,1704385862831,-970.92,0.00033698,2]
[310166182,1704385862841,-1946.5,0.00033698,2]
[310166183,1704385862851,-1429.86,0.00033698,2]
[310166184,1704385862863,-500.0,0.00033698,2]
[310166185,1704385862874,-500.0,0.00033698,2]
[310166186,1704385862886,-500.0,0.00033698,2]
[310166187,1704385862897,-812.24,0.00033698,2]
[310166188,1704385862907,-618.83,0.00033698,2]
[310166189,1704385862917,-500.0,0.00033698,2]
[310166190,1704385862928,-2265.98,0.00033698,2]
[310166191,1704385862939,-584.3,0.00033698,2]
[310166192,1704385862951,-500.0,0.00033698,2]
[310166193,1704385862963,-500.0,0.00033698,2]
[310166194,1704385862975,-500.0,0.00033698,2]
[310166195,1704385862985,-500.0,0.00033698,2]
[310166196,1704385862995,-500.0,0.00033698,2]
[310166197,1704385863005,-500.0,0.00033698,2]
[310166198,1704385863015,-797.83,0.00033698,2]
[310166199,1704385863025,-515.66,0.00033698,2]
[310166200,1704385863035,-867.08,0.00033698,2]
[310166201,1704385863045,-723.11,0.00033698,2]
[310166202,1704385863056,-500.0,0.00033698,2]
[310166203,1704385863065,-4731.84,0.00033698,2]
[310166204,1704385863078,-1328.75,0.00033698,2]
[310166205,1704385863088,-285.81571492,0.00033698,2]
[310166206,1704385863105,-502.51428508,0.00033698,2]
[310166207,1704385863115,-587.07259331,0.00033698,2]
[310166208,1704385863130,-552.20740669,0.00033698,2]
[310166209,1704385863140,-500.0,0.00033698,2]
[310166210,1704385863150,-567.59259331,0.00033698,2]
[310166211,1704385863163,-432.42740669,0.00033698,2]
[310166212,1704385863173,-500.0,0.00033698,2]
[310166213,1704385863183,-275.17259331,0.00033698,2]
[310166214,1704385863203,-224.82740669,0.00033698,2]
[310166215,1704385863214,-851.87259331,0.00033698,2]
[310166216,1704385863227,-305.51235568,0.00033698,2]
[310166217,1704385863248,-591.86505101,0.00033698,2]
[310166218,1704385863259,-500.0,0.00033698,2]
[310166219,1704385863270,-602.29,0.00033698,2]
[310166220,1704385863281,-966.43,0.00033698,2]
[310166221,1704385863292,-298.21291675,0.00033698,2]